[Event "*** SCC Grand Prix: Titled Tuesday Blitz"]
[Site "Chess.com"]
[Date "2020.07.14"]
[Round "1"]
[White "LilRag"]
[Black "fish7728"]
[Result "1-0"]
[WhiteElo "2515"]
[BlackElo "2177"]
[TimeControl "180+1"]
[EndTime "10:07:22 PDT"]
[Termination "LilRag won by resignation"]

1. Nf3 {[%clk 0:03:00.9]} 1... Nf6 {[%clk 0:02:59.7]} 2. d4 {[%clk 0:03:00.5]}
2... d5 {[%clk 0:02:59.4]} 3. c4 {[%clk 0:03:00.7]} 3... c6 {[%clk 0:02:59.4]}
4. Nc3 {[%clk 0:03:00.4]} 4... e6 {[%clk 0:02:59]} 5. cxd5 {[%clk 0:02:59.5]}
5... exd5 {[%clk 0:02:57.1]} 6. Bf4 {[%clk 0:02:57.2]} 6... Bd6 {[%clk
0:02:55.4]} 7. Bxd6 {[%clk 0:02:56.2]} 7... Qxd6 {[%clk 0:02:54.7]} 8. e3 {[%clk
0:02:56.6]} 8... O-O {[%clk 0:02:53.9]} 9. Be2 {[%clk 0:02:56.6]} 9... Nbd7
{[%clk 0:02:41.6]} 10. O-O {[%clk 0:02:54.5]} 10... Ne4 {[%clk 0:02:41.8]} 11.
Nxe4 {[%clk 0:02:50.7]} 11... dxe4 {[%clk 0:02:41.8]} 12. Nd2 {[%clk 0:02:51.3]}
12... Nf6 {[%clk 0:02:34.8]} 13. Rc1 {[%clk 0:02:50.5]} 13... Be6 {[%clk
0:02:29.8]} 14. a3 {[%clk 0:02:49.4]} 14... Bd5 {[%clk 0:02:24]} 15. Bc4 {[%clk
0:02:41.2]} 15... Rac8 {[%clk 0:02:20.8]} 16. Qb3 {[%clk 0:02:38.7]} 16... b6
{[%clk 0:02:15.8]} 17. h3 {[%clk 0:02:31.8]} 17... h5 {[%clk 0:01:56.7]} 18. Rc2
{[%clk 0:02:18.6]} 18... Rc7 {[%clk 0:01:46.5]} 19. Rfc1 {[%clk 0:02:15.3]}
19... Rfc8 {[%clk 0:01:45.9]} 20. Rc3 {[%clk 0:01:50.8]} 20... Qe7 {[%clk
0:01:31.7]} 21. Qc2 {[%clk 0:01:40.3]} 21... Ne8 {[%clk 0:01:18.4]} 22. b4
{[%clk 0:01:20.2]} 22... b5 {[%clk 0:01:12]} 23. Bxd5 {[%clk 0:01:20.1]} 23...
cxd5 {[%clk 0:01:11.8]} 24. Rc5 {[%clk 0:01:20.5]} 24... Qd6 {[%clk 0:00:58.1]}
25. Nb3 {[%clk 0:01:13.2]} 25... a6 {[%clk 0:00:48.9]} 26. Qe2 {[%clk
0:01:02.6]} 26... g6 {[%clk 0:00:42.7]} 27. R1c3 {[%clk 0:00:58.6]} 27... Rxc5
{[%clk 0:00:30.4]} 28. dxc5 {[%clk 0:00:54.5]} 28... Qd7 {[%clk 0:00:24.1]} 29.
Nd4 {[%clk 0:00:52.4]} 29... Nc7 {[%clk 0:00:19.6]} 30. Qc2 {[%clk 0:00:46.7]}
30... Ne6 {[%clk 0:00:18.3]} 31. c6 {[%clk 0:00:36.6]} 31... Qd6 {[%clk
0:00:17.9]} 32. Nxe6 {[%clk 0:00:33.7]} 32... Qxe6 {[%clk 0:00:15]} 33. c7
{[%clk 0:00:32.6]} 33... Qd7 {[%clk 0:00:14.8]} 34. Rc6 {[%clk 0:00:25.1]} 34...
Kg7 {[%clk 0:00:13.8]} 35. Qc5 {[%clk 0:00:23.2]} 35... Kh7 {[%clk 0:00:05.8]}
36. Qb6 {[%clk 0:00:20.4]} 36... d4 {[%clk 0:00:03.7]} 37. exd4 {[%clk
0:00:19.2]} 37... e3 {[%clk 0:00:04]} 38. fxe3 {[%clk 0:00:18.7]} 38... Qe7
{[%clk 0:00:04.1]} 39. d5 {[%clk 0:00:18.3]} 39... h4 {[%clk 0:00:02.7]} 40. Qd4
{[%clk 0:00:17.6]} 40... g5 {[%clk 0:00:02.2]} 41. d6 {[%clk 0:00:17.6]} 41...
Qe6 {[%clk 0:00:02.2]} 1-0

[Event "*** SCC Grand Prix: Titled Tuesday Blitz"]
[Site "Chess.com"]
[Date "2020.07.14"]
[Round "1"]
[White "Alohamora11"]
[Black "BlueWizzard"]
[Result "0-1"]
[WhiteElo "2397"]
[BlackElo "2765"]
[TimeControl "180+1"]
[EndTime "10:07:23 PDT"]
[Termination "BlueWizzard won by resignation"]

1. e4 {[%clk 0:03:00.9]} 1... c6 {[%clk 0:03:00.7]} 2. d4 {[%clk 0:02:59.3]}
2... g6 {[%clk 0:03:01.6]} 3. Nc3 {[%clk 0:02:58.3]} 3... Bg7 {[%clk 0:03:02.2]}
4. Bc4 {[%clk 0:02:56.2]} 4... b5 {[%clk 0:02:58.7]} 5. Bb3 {[%clk 0:02:54.3]}
5... e6 {[%clk 0:02:56.6]} 6. e5 {[%clk 0:02:50.2]} 6... d5 {[%clk 0:02:56.5]}
7. exd6 {[%clk 0:02:48.3]} 7... Qxd6 {[%clk 0:02:56.5]} 8. Ne4 {[%clk
0:02:45.1]} 8... Qe7 {[%clk 0:02:53.6]} 9. Bf4 {[%clk 0:02:16.6]} 9... e5 {[%clk
0:02:53.6]} 10. dxe5 {[%clk 0:02:04.5]} 10... Qb4+ {[%clk 0:02:53]} 11. Kf1
{[%clk 0:01:34.4]} 11... Qxe4 {[%clk 0:02:51.7]} 12. Bg5 {[%clk 0:01:34.7]}
12... Nd7 {[%clk 0:02:15.4]} 13. Qd6 {[%clk 0:01:28]} 13... Bxe5 {[%clk
0:02:06.9]} 14. Qd2 {[%clk 0:01:12.9]} 14... f6 {[%clk 0:01:55.2]} 15. Re1
{[%clk 0:01:03.9]} 15... Qf5 {[%clk 0:01:49.6]} 16. Nf3 {[%clk 0:00:50.4]} 16...
Ne7 {[%clk 0:01:41.1]} 17. Bh6 {[%clk 0:00:48.5]} 17... Nc5 {[%clk 0:01:33.6]}
18. Nxe5 {[%clk 0:00:44.7]} 18... fxe5 {[%clk 0:01:22.1]} 19. Bg7 {[%clk
0:00:43.8]} 19... Nxb3 {[%clk 0:01:13.3]} 20. axb3 {[%clk 0:00:43.2]} 20... Rg8
{[%clk 0:01:11.8]} 21. Rxe5 {[%clk 0:00:43.3]} 21... Qd7 {[%clk 0:01:07]} 22.
Qh6 {[%clk 0:00:42]} 22... Kf7 {[%clk 0:01:00.7]} 23. Bf8 {[%clk 0:00:34.1]}
23... Nf5 {[%clk 0:00:47.5]} 24. Qxh7+ {[%clk 0:00:27.5]} 24... Kxf8 {[%clk
0:00:47.8]} 25. Qh3 {[%clk 0:00:25.2]} 25... Qd1+ {[%clk 0:00:40.6]} 26. Re1
{[%clk 0:00:24.8]} 26... Qxc2 {[%clk 0:00:35]} 27. Qf3 {[%clk 0:00:20.5]} 27...
Bd7 {[%clk 0:00:24.6]} 28. g4 {[%clk 0:00:20.3]} 28... Re8 {[%clk 0:00:24.5]}
29. Rxe8+ {[%clk 0:00:19.8]} 29... Kxe8 {[%clk 0:00:25.4]} 30. gxf5 {[%clk
0:00:20.5]} 30... Bxf5 {[%clk 0:00:25.5]} 31. Kg2 {[%clk 0:00:21.1]} 31... Kd7
{[%clk 0:00:24.7]} 32. Re1 {[%clk 0:00:21.2]} 32... Re8 {[%clk 0:00:22.8]} 33.
Rd1+ {[%clk 0:00:21.8]} 33... Kc8 {[%clk 0:00:23]} 34. Kg1 {[%clk 0:00:19.8]}
34... Qe4 {[%clk 0:00:22.2]} 35. Qg3 {[%clk 0:00:18.7]} 35... Qg4 {[%clk
0:00:22.9]} 36. Rd6 {[%clk 0:00:15]} 36... Re1+ {[%clk 0:00:22.1]} 37. Kg2
{[%clk 0:00:14.9]} 37... Be4+ {[%clk 0:00:22.7]} 38. f3 {[%clk 0:00:14.9]} 38...
Bxf3+ {[%clk 0:00:23]} 39. Kf2 {[%clk 0:00:15.5]} 39... Re2+ {[%clk 0:00:22.6]}
40. Kf1 {[%clk 0:00:16.1]} 40... Qxg3 {[%clk 0:00:22.5]} 41. hxg3 {[%clk
0:00:17]} 41... Rxb2 {[%clk 0:00:22.3]} 42. Rf6 {[%clk 0:00:17.6]} 42... Bd5
{[%clk 0:00:22.7]} 43. b4 {[%clk 0:00:16.8]} 43... Rb3 {[%clk 0:00:23.6]} 44.
Rxg6 {[%clk 0:00:14.4]} 44... Rxb4 {[%clk 0:00:23.9]} 45. Rg7 {[%clk 0:00:14.9]}
45... a5 {[%clk 0:00:24.1]} 46. Ke2 {[%clk 0:00:15.4]} 46... a4 {[%clk
0:00:24.6]} 47. Kd2 {[%clk 0:00:16.3]} 47... a3 {[%clk 0:00:24.8]} 48. Kc3
{[%clk 0:00:17.2]} 48... Ra4 {[%clk 0:00:24.8]} 49. g4 {[%clk 0:00:15.8]} 49...
a2 {[%clk 0:00:25.2]} 0-1

[Event "*** SCC Grand Prix: Titled Tuesday Blitz"]
[Site "Chess.com"]
[Date "2020.07.14"]
[Round "1"]
[White "Shuvalov"]
[Black "BillCoe"]
[Result "1-0"]
[WhiteElo "2490"]
[BlackElo "2111"]
[TimeControl "180+1"]
[EndTime "10:07:23 PDT"]
[Termination "Shuvalov won by resignation"]

1. e4 {[%clk 0:02:51.5]} 1... c5 {[%clk 0:02:58.7]} 2. Nf3 {[%clk 0:02:51.1]}
2... e6 {[%clk 0:02:59]} 3. c4 {[%clk 0:02:49.3]} 3... Nc6 {[%clk 0:02:59.1]} 4.
d4 {[%clk 0:02:49.1]} 4... cxd4 {[%clk 0:02:58.9]} 5. Nxd4 {[%clk 0:02:50]} 5...
a6 {[%clk 0:02:58.2]} 6. a3 {[%clk 0:02:48.3]} 6... d6 {[%clk 0:02:58.2]} 7. Nc3
{[%clk 0:02:47.6]} 7... Be7 {[%clk 0:02:58.6]} 8. Be3 {[%clk 0:02:47.2]} 8...
Nf6 {[%clk 0:02:57.2]} 9. Be2 {[%clk 0:02:46.7]} 9... O-O {[%clk 0:02:56.8]} 10.
O-O {[%clk 0:02:46.7]} 10... Bd7 {[%clk 0:02:55.3]} 11. f3 {[%clk 0:02:45.5]}
11... Rc8 {[%clk 0:02:55.1]} 12. Qd2 {[%clk 0:02:39.7]} 12... Ne5 {[%clk
0:02:49.6]} 13. b3 {[%clk 0:02:37.1]} 13... Qc7 {[%clk 0:02:41]} 14. Rfc1 {[%clk
0:02:34.3]} 14... Rfd8 {[%clk 0:02:40.1]} 15. b4 {[%clk 0:01:52.9]} 15... Qb8
{[%clk 0:02:33.8]} 16. Qa2 {[%clk 0:01:48.4]} 16... Rc7 {[%clk 0:02:20.2]} 17.
b5 {[%clk 0:01:30.4]} 17... axb5 {[%clk 0:02:02.9]} 18. Ncxb5 {[%clk 0:01:27.7]}
18... Bxb5 {[%clk 0:02:02.6]} 19. Nxb5 {[%clk 0:01:25.9]} 19... Rcd7 {[%clk
0:02:02.8]} 20. Rab1 {[%clk 0:01:22]} 20... d5 {[%clk 0:01:54.5]} 21. cxd5
{[%clk 0:01:10.4]} 21... exd5 {[%clk 0:01:53.3]} 22. Bb6 {[%clk 0:01:10.3]}
22... Rc8 {[%clk 0:01:43.3]} 23. f4 {[%clk 0:01:07.6]} 23... Nc4 {[%clk
0:01:35.1]} 24. Ba7 {[%clk 0:00:57.6]} 24... Qa8 {[%clk 0:01:27.8]} 25. e5
{[%clk 0:00:56.1]} 25... Ne4 {[%clk 0:01:19.5]} 26. Bg4 {[%clk 0:00:51.8]} 26...
Rdd8 {[%clk 0:00:51.9]} 27. Bxc8 {[%clk 0:00:50.3]} 27... Rxc8 {[%clk
0:00:52.7]} 28. Bd4 {[%clk 0:00:43.2]} 28... Bc5 {[%clk 0:00:46.3]} 29. Bxc5
{[%clk 0:00:42.2]} 29... Nxc5 {[%clk 0:00:47.2]} 30. Nd6 {[%clk 0:00:37.5]}
30... Rd8 {[%clk 0:00:42.1]} 31. Nxc4 {[%clk 0:00:36]} 31... dxc4 {[%clk
0:00:41.5]} 32. Qxc4 {[%clk 0:00:36.3]} 32... Qxa3 {[%clk 0:00:36.3]} 33. Qxc5
{[%clk 0:00:22.2]} 33... Rd1+ {[%clk 0:00:24.8]} 34. Kf2 {[%clk 0:00:21.6]}
34... Rd2+ {[%clk 0:00:13.3]} 35. Ke1 {[%clk 0:00:21.5]} 35... Rd8 {[%clk
0:00:06]} 36. Qxa3 {[%clk 0:00:21]} 1-0

[Event "*** SCC Grand Prix: Titled Tuesday Blitz"]
[Site "Chess.com"]
[Date "2020.07.14"]
[Round "1"]
[White "ditkin25"]
[Black "dretch"]
[Result "0-1"]
[WhiteElo "2407"]
[BlackElo "2806"]
[TimeControl "180+1"]
[EndTime "10:07:24 PDT"]
[Termination "dretch won by resignation"]

1. e4 {[%clk 0:02:59.1]} 1... e6 {[%clk 0:02:56.1]} 2. d4 {[%clk 0:02:58.7]}
2... d5 {[%clk 0:02:56.3]} 3. Nc3 {[%clk 0:02:59.1]} 3... Nf6 {[%clk 0:02:55.7]}
4. Bg5 {[%clk 0:02:59.3]} 4... dxe4 {[%clk 0:02:55.8]} 5. Nxe4 {[%clk
0:03:00.2]} 5... Be7 {[%clk 0:02:56.3]} 6. Bxf6 {[%clk 0:03:00.7]} 6... Bxf6
{[%clk 0:02:57.2]} 7. Nf3 {[%clk 0:03:01.2]} 7... Nd7 {[%clk 0:02:57.8]} 8. Bd3
{[%clk 0:03:01.2]} 8... c5 {[%clk 0:02:57.8]} 9. dxc5 {[%clk 0:02:53.3]} 9...
Nxc5 {[%clk 0:02:56.4]} 10. Nxc5 {[%clk 0:02:50.4]} 10... Qa5+ {[%clk 0:02:56]}
11. c3 {[%clk 0:02:51.1]} 11... Qxc5 {[%clk 0:02:56]} 12. O-O {[%clk 0:02:51.5]}
12... Bd7 {[%clk 0:02:53.2]} 13. Qe2 {[%clk 0:02:46.5]} 13... Rd8 {[%clk
0:02:49.7]} 14. Rad1 {[%clk 0:02:45.8]} 14... O-O {[%clk 0:02:46.6]} 15. Nd2
{[%clk 0:02:26.3]} 15... Be7 {[%clk 0:02:28.5]} 16. Ne4 {[%clk 0:02:13.5]} 16...
Qa5 {[%clk 0:02:22.5]} 17. Bb1 {[%clk 0:02:04.6]} 17... Bb5 {[%clk 0:02:12.7]}
18. c4 {[%clk 0:01:59.1]} 18... Bc6 {[%clk 0:02:10.4]} 19. h3 {[%clk 0:01:52]}
19... Rxd1 {[%clk 0:01:56.5]} 20. Rxd1 {[%clk 0:01:51.6]} 20... Rd8 {[%clk
0:01:56.4]} 21. b3 {[%clk 0:01:19.4]} 21... Rxd1+ {[%clk 0:01:49.5]} 22. Qxd1
{[%clk 0:01:20.3]} 22... f5 {[%clk 0:01:49.3]} 23. Ng3 {[%clk 0:01:14.4]} 23...
Qe5 {[%clk 0:01:40.7]} 24. Nf1 {[%clk 0:00:45.3]} 24... Bc5 {[%clk 0:01:36.7]}
25. Qd8+ {[%clk 0:00:42.5]} 25... Kf7 {[%clk 0:01:36.3]} 26. Qd2 {[%clk
0:00:37.3]} 26... a5 {[%clk 0:01:14.4]} 27. Ne3 {[%clk 0:00:33]} 27... Qa1
{[%clk 0:01:13.8]} 28. Qd1 {[%clk 0:00:25]} 28... Qb2 {[%clk 0:00:49.8]} 29. Qc2
{[%clk 0:00:16.9]} 29... Qxc2 {[%clk 0:00:44.6]} 30. Bxc2 {[%clk 0:00:17.8]}
30... Kf6 {[%clk 0:00:44.1]} 31. Kf1 {[%clk 0:00:17.7]} 31... Ke5 {[%clk
0:00:43.6]} 32. g4 {[%clk 0:00:17]} 32... g6 {[%clk 0:00:29.2]} 33. Ke2 {[%clk
0:00:15.8]} 33... Kd4 {[%clk 0:00:26.1]} 34. Nd1 {[%clk 0:00:15.7]} 34... Bg2
{[%clk 0:00:14.4]} 35. f3 {[%clk 0:00:12.1]} 35... Bxh3 {[%clk 0:00:11.4]} 36.
Nf2 {[%clk 0:00:12.4]} 36... Bg2 {[%clk 0:00:11.7]} 37. Kd2 {[%clk 0:00:11.7]}
37... Bxf3 {[%clk 0:00:11.5]} 38. gxf5 {[%clk 0:00:11.7]} 38... Bb4+ {[%clk
0:00:11.7]} 39. Kc1 {[%clk 0:00:11.6]} 39... exf5 {[%clk 0:00:12.6]} 40. Bd1
{[%clk 0:00:11.7]} 40... Bxd1 {[%clk 0:00:12.2]} 41. Nxd1 {[%clk 0:00:12.6]}
41... f4 {[%clk 0:00:12.3]} 42. Kc2 {[%clk 0:00:12.2]} 42... f3 {[%clk
0:00:12.4]} 43. Nb2 {[%clk 0:00:12.9]} 43... f2 {[%clk 0:00:12.3]} 0-1

[Event "*** SCC Grand Prix: Titled Tuesday Blitz"]
[Site "Chess.com"]
[Date "2020.07.14"]
[Round "1"]
[White "isla88"]
[Black "YPradafah"]
[Result "0-1"]
[WhiteElo "2226"]
[BlackElo "2560"]
[TimeControl "180+1"]
[EndTime "10:07:24 PDT"]
[Termination "YPradafah won by resignation"]

1. c4 {[%clk 0:02:59.7]} 1... Nf6 {[%clk 0:02:52.3]} 2. Nc3 {[%clk 0:02:59.6]}
2... g6 {[%clk 0:02:51.6]} 3. e4 {[%clk 0:02:59.1]} 3... d6 {[%clk 0:02:51.7]}
4. d4 {[%clk 0:02:59.4]} 4... Bg7 {[%clk 0:02:52.4]} 5. h3 {[%clk 0:03:00.1]}
5... O-O {[%clk 0:02:52.3]} 6. Be3 {[%clk 0:03:00.7]} 6... e5 {[%clk 0:02:51.8]}
7. d5 {[%clk 0:03:00.2]} 7... a5 {[%clk 0:02:52.2]} 8. g4 {[%clk 0:03:00.1]}
8... Na6 {[%clk 0:02:52]} 9. Nge2 {[%clk 0:03:00.8]} 9... Nc5 {[%clk 0:02:49.2]}
10. Ng3 {[%clk 0:03:01.3]} 10... Bd7 {[%clk 0:02:38.7]} 11. Qd2 {[%clk
0:02:57.2]} 11... a4 {[%clk 0:02:35.4]} 12. f3 {[%clk 0:02:52.2]} 12... c6
{[%clk 0:02:35.6]} 13. h4 {[%clk 0:02:51]} 13... cxd5 {[%clk 0:02:35.5]} 14.
cxd5 {[%clk 0:02:50.6]} 14... Qa5 {[%clk 0:02:34.8]} 15. Bh6 {[%clk 0:02:44.4]}
15... a3 {[%clk 0:00:48.2]} 16. Bxg7 {[%clk 0:02:42.8]} 16... Kxg7 {[%clk
0:00:32.8]} 17. h5 {[%clk 0:02:28.3]} 17... axb2 {[%clk 0:00:27.8]} 18. Rb1
{[%clk 0:02:10.4]} 18... Rac8 {[%clk 0:00:21]} 19. hxg6 {[%clk 0:02:05.1]} 19...
fxg6 {[%clk 0:00:18.6]} 20. Qh6+ {[%clk 0:01:40.1]} 20... Kg8 {[%clk 0:00:18.2]}
21. Ne2 {[%clk 0:01:35.3]} 21... Nd3+ {[%clk 0:00:15]} 22. Kd2 {[%clk
0:01:35.7]} 22... Nf4 {[%clk 0:00:14.1]} 23. g5 {[%clk 0:01:24.5]} 23... N6h5
{[%clk 0:00:12]} 24. Rxh5 {[%clk 0:01:08.5]} 24... gxh5 {[%clk 0:00:09]} 25. g6
{[%clk 0:01:05.2]} 25... Nxg6 {[%clk 0:00:07.4]} 26. Rxb2 {[%clk 0:01:00.5]}
26... Rc7 {[%clk 0:00:03.8]} 27. Rc2 {[%clk 0:00:57.4]} 27... Rfc8 {[%clk
0:00:03.9]} 28. f4 {[%clk 0:00:47.4]} 28... exf4 {[%clk 0:00:03.5]} 29. Qxh5
{[%clk 0:00:34.6]} 29... b5 {[%clk 0:00:03.5]} 30. a3 {[%clk 0:00:32.6]} 30...
b4 {[%clk 0:00:03.7]} 31. axb4 {[%clk 0:00:31.5]} 31... Qxb4 {[%clk 0:00:04.6]}
32. Bh3 {[%clk 0:00:29.1]} 32... Bxh3 {[%clk 0:00:03.9]} 33. Qxh3 {[%clk
0:00:30]} 33... f3 {[%clk 0:00:03.9]} 34. Qe6+ {[%clk 0:00:30.4]} 34... Kh8
{[%clk 0:00:04]} 35. Qf6+ {[%clk 0:00:30.8]} 35... Kg8 {[%clk 0:00:04.3]} 36.
Qe6+ {[%clk 0:00:30.6]} 36... Kf8 {[%clk 0:00:04.8]} 37. Qf6+ {[%clk 0:00:30.3]}
37... Rf7 {[%clk 0:00:05.4]} 38. Qe6 {[%clk 0:00:27.3]} 38... Re8 {[%clk
0:00:06]} 39. Nd4 {[%clk 0:00:20.9]} 39... Qxd4+ {[%clk 0:00:05.5]} 40. Kc1
{[%clk 0:00:20.8]} 40... Rxe6 {[%clk 0:00:05.4]} 41. dxe6 {[%clk 0:00:20.9]}
41... Rc7 {[%clk 0:00:06.1]} 0-1

[Event "*** SCC Grand Prix: Titled Tuesday Blitz"]
[Site "Chess.com"]
[Date "2020.07.14"]
[Round "1"]
[White "joksijoksi"]
[Black "crazyboy26"]
[Result "0-1"]
[WhiteElo "2383"]
[BlackElo "2730"]
[TimeControl "180+1"]
[EndTime "10:07:25 PDT"]
[Termination "crazyboy26 won on time"]

1. d4 {[%clk 0:03:00.5]} 1... Nf6 {[%clk 0:02:50.3]} 2. c4 {[%clk 0:03:00.5]}
2... Nc6 {[%clk 0:02:49.6]} 3. Nc3 {[%clk 0:02:36.6]} 3... e5 {[%clk 0:02:48.8]}
4. d5 {[%clk 0:02:29]} 4... Ne7 {[%clk 0:02:48.6]} 5. e4 {[%clk 0:02:24.9]} 5...
Ng6 {[%clk 0:02:48.1]} 6. Be3 {[%clk 0:02:21.5]} 6... Bb4 {[%clk 0:02:46.7]} 7.
f3 {[%clk 0:02:20]} 7... O-O {[%clk 0:02:40.2]} 8. Ne2 {[%clk 0:02:13.3]} 8...
d6 {[%clk 0:02:39]} 9. Ng3 {[%clk 0:02:13.6]} 9... c6 {[%clk 0:02:28.2]} 10. a3
{[%clk 0:02:08]} 10... Bxc3+ {[%clk 0:02:20]} 11. bxc3 {[%clk 0:02:08.9]} 11...
Qa5 {[%clk 0:02:19.2]} 12. Qd2 {[%clk 0:02:06.1]} 12... Nf4 {[%clk 0:02:04.1]}
13. Ne2 {[%clk 0:01:46]} 13... Ng6 {[%clk 0:01:57.1]} 14. Ng3 {[%clk 0:01:45]}
14... b6 {[%clk 0:01:51.3]} 15. dxc6 {[%clk 0:01:33.9]} 15... Be6 {[%clk
0:01:47.8]} 16. Be2 {[%clk 0:01:06.8]} 16... Rac8 {[%clk 0:01:45.3]} 17. Qxd6
{[%clk 0:00:58.1]} 17... Bxc4 {[%clk 0:01:22.3]} 18. Qb4 {[%clk 0:00:45.2]}
18... Bxe2 {[%clk 0:01:21.3]} 19. Qxa5 {[%clk 0:00:39.1]} 19... bxa5 {[%clk
0:01:22.2]} 20. Nxe2 {[%clk 0:00:37.4]} 20... a6 {[%clk 0:01:16.8]} 21. Bb6
{[%clk 0:00:33.4]} 21... a4 {[%clk 0:01:08.7]} 22. c7 {[%clk 0:00:26.3]} 22...
Nd7 {[%clk 0:01:07.9]} 23. Rb1 {[%clk 0:00:23.2]} 23... Rfe8 {[%clk 0:01:04.4]}
24. Kf2 {[%clk 0:00:20.5]} 24... Nxb6 {[%clk 0:00:50.9]} 25. Rxb6 {[%clk
0:00:20]} 25... Rxc7 {[%clk 0:00:51.8]} 26. Rxa6 {[%clk 0:00:20]} 26... Rd8
{[%clk 0:00:47.5]} 27. Ke3 {[%clk 0:00:16.3]} 27... h5 {[%clk 0:00:45.3]} 28.
Rxa4 {[%clk 0:00:15.3]} 28... Nf4 {[%clk 0:00:41.9]} 29. Nxf4 {[%clk 0:00:14.4]}
29... Rxc3+ {[%clk 0:00:41.7]} 30. Kf2 {[%clk 0:00:05.1]} 30... exf4 {[%clk
0:00:41.7]} 31. Re1 {[%clk 0:00:04.9]} 31... Kh7 {[%clk 0:00:35.7]} 32. e5
{[%clk 0:00:03.5]} 32... g5 {[%clk 0:00:34.9]} 33. h4 {[%clk 0:00:04]} 33... Kg6
{[%clk 0:00:28.4]} 34. hxg5 {[%clk 0:00:04.1]} 34... Kxg5 {[%clk 0:00:29.3]} 35.
Ra7 {[%clk 0:00:03]} 35... Kg6 {[%clk 0:00:25]} 36. Ra6+ {[%clk 0:00:03.3]}
36... Kg5 {[%clk 0:00:23]} 37. Rf6 {[%clk 0:00:01.9]} 37... Rxa3 {[%clk
0:00:18.4]} 38. Rxf7 {[%clk 0:00:01.5]} 38... Rd2+ {[%clk 0:00:18.7]} 39. Re2
{[%clk 0:00:00.7]} 39... Raa2 {[%clk 0:00:19.6]} 0-1

[Event "*** SCC Grand Prix: Titled Tuesday Blitz"]
[Site "Chess.com"]
[Date "2020.07.14"]
[Round "1"]
[White "googlegoom"]
[Black "GustavoJuarezF"]
[Result "1-0"]
[WhiteElo "2467"]
[BlackElo "1996"]
[TimeControl "180+1"]
[EndTime "10:07:26 PDT"]
[Termination "googlegoom won on time"]

1. Nf3 {[%clk 0:03:00.3]} 1... b6 {[%clk 0:02:57.6]} 2. b3 {[%clk 0:02:59.4]}
2... c5 {[%clk 0:02:56.6]} 3. Bb2 {[%clk 0:02:56.3]} 3... d5 {[%clk 0:02:54.5]}
4. e3 {[%clk 0:02:55.3]} 4... Bb7 {[%clk 0:02:53.3]} 5. Be2 {[%clk 0:02:54]}
5... a6 {[%clk 0:02:50.2]} 6. O-O {[%clk 0:02:53.4]} 6... e6 {[%clk 0:02:49.7]}
7. d4 {[%clk 0:02:52.3]} 7... Nf6 {[%clk 0:02:45.2]} 8. Nbd2 {[%clk 0:02:52]}
8... Be7 {[%clk 0:02:42.6]} 9. c4 {[%clk 0:02:51.8]} 9... O-O {[%clk 0:02:40.1]}
10. Rc1 {[%clk 0:02:51.1]} 10... Nc6 {[%clk 0:02:31.1]} 11. Qc2 {[%clk
0:02:43.3]} 11... Rc8 {[%clk 0:02:28.7]} 12. Qb1 {[%clk 0:02:43.7]} 12... cxd4
{[%clk 0:02:23.1]} 13. Nxd4 {[%clk 0:02:43.7]} 13... Nxd4 {[%clk 0:02:22.4]} 14.
Bxd4 {[%clk 0:02:44.6]} 14... dxc4 {[%clk 0:02:17.6]} 15. Nxc4 {[%clk
0:02:45.5]} 15... b5 {[%clk 0:02:13.7]} 16. Bb6 {[%clk 0:02:16.8]} 16... Qe8
{[%clk 0:02:06.6]} 17. Na5 {[%clk 0:02:04.2]} 17... Be4 {[%clk 0:02:03.5]} 18.
Qa1 {[%clk 0:01:54.2]} 18... Nd5 {[%clk 0:01:50.4]} 19. Bd4 {[%clk 0:01:44.2]}
19... Bf6 {[%clk 0:01:49.5]} 20. f3 {[%clk 0:01:20]} 20... Bg6 {[%clk
0:01:32.4]} 21. Nb7 {[%clk 0:01:05.5]} 21... Qd7 {[%clk 0:00:56.2]} 22. Nc5
{[%clk 0:01:01.6]} 22... Qc6 {[%clk 0:00:42.5]} 23. Ne4 {[%clk 0:00:52.4]} 23...
Bxd4 {[%clk 0:00:39.8]} 24. exd4 {[%clk 0:00:43.2]} 24... Qb6 {[%clk 0:00:35.9]}
25. Nc5 {[%clk 0:00:42.8]} 25... Rfd8 {[%clk 0:00:23.7]} 26. Rfd1 {[%clk
0:00:41.6]} 26... Ne3 {[%clk 0:00:22]} 27. Rd2 {[%clk 0:00:41.9]} 27... Nf5
{[%clk 0:00:21.3]} 28. b4 {[%clk 0:00:35.7]} 28... h6 {[%clk 0:00:20.4]} 29. a3
{[%clk 0:00:33.3]} 29... Rc6 {[%clk 0:00:19]} 30. Qc3 {[%clk 0:00:21.2]} 30...
Rcd6 {[%clk 0:00:18.9]} 31. Rcd1 {[%clk 0:00:21.7]} 31... Kh7 {[%clk 0:00:14.8]}
32. Kh1 {[%clk 0:00:22.1]} 32... f6 {[%clk 0:00:11.7]} 33. Bd3 {[%clk
0:00:22.3]} 33... e5 {[%clk 0:00:10.8]} 34. Bxf5 {[%clk 0:00:20.5]} 34... Bxf5
{[%clk 0:00:08.3]} 35. dxe5 {[%clk 0:00:21.1]} 35... Rxd2 {[%clk 0:00:07.8]} 36.
Rxd2 {[%clk 0:00:22]} 36... Rxd2 {[%clk 0:00:07.6]} 37. Qxd2 {[%clk 0:00:22.9]}
37... fxe5 {[%clk 0:00:07.5]} 38. Qe3 {[%clk 0:00:16.3]} 38... Qd6 {[%clk
0:00:05.4]} 39. h3 {[%clk 0:00:16.7]} 39... g5 {[%clk 0:00:02]} 40. Ne4 {[%clk
0:00:14.3]} 1-0